[Event "Titled Tuesday Blitz December 20 Early 2022"]
[White "Imperial, Genghis"]
[Black "googlegoom"]
[WhiteFideId "5230403"]
[WhiteElo "1812"]
[BlackElo "2581"]
[Result "0-1"]
[Round "03"]
[TimeControl "180+2"]
[Date "2022.12.20"]
[WhiteClock "0:00:12"]
[BlackClock "0:00:12"]

1. e4 {[%clk 0:02:55]}  c5 {[%clk 0:03:00]} 2. Nf3 {[%clk 0:02:55]}  Nc6 {[%clk 0:03:00]} 3. d4 {[%clk 0:02:55]}  cxd4 {[%clk 0:03:00]} 4. Nxd4 {[%clk 0:02:56]}  Qb6 {[%clk 0:03:00]} 5. Nb3 {[%clk 0:02:55]}  Nf6 {[%clk 0:03:01]} 6. Nc3 {[%clk 0:02:54]}  e6 {[%clk 0:03:00]} 7. a3 {[%clk 0:02:54]}  d6 {[%clk 0:03:00]} 8. Be3 {[%clk 0:02:50]}  Qc7 {[%clk 0:03:00]} 9. f4 {[%clk 0:02:49]}  a6 {[%clk 0:03:00]} 10. g4 {[%clk 0:02:49]}  b5 {[%clk 0:03:00]} 11. g5 {[%clk 0:02:49]}  Nd7 {[%clk 0:03:01]} 12. Qe2 {[%clk 0:02:50]}  Bb7 {[%clk 0:03:01]} 13. O-O-O {[%clk 0:02:50]}  Nc5 {[%clk 0:02:57]} 14. Nxc5 {[%clk 0:02:23]}  dxc5 {[%clk 0:02:57]} 15. Bh3 {[%clk 0:02:23]}  b4 {[%clk 0:02:28]} 16. axb4 {[%clk 0:02:21]}  cxb4 {[%clk 0:02:27]} 17. Nd5 {[%clk 0:02:10]}  exd5 {[%clk 0:01:57]} 18. exd5 {[%clk 0:02:11]}  Be7 {[%clk 0:01:58]} 19. d6 {[%clk 0:01:24]}  Bxd6 {[%clk 0:01:50]} 20. Rxd6 {[%clk 0:01:24]}  O-O {[%clk 0:01:50]} 21. Rhd1 {[%clk 0:01:19]}  Rad8 {[%clk 0:01:40]} 22. Rd7 {[%clk 0:01:15]}  Qa5 {[%clk 0:01:28]} 23. Kb1 {[%clk 0:01:12]}  Rxd7 {[%clk 0:01:24]} 24. Rxd7 {[%clk 0:01:12]}  Bc8 {[%clk 0:01:25]} 25. Qc4 {[%clk 0:00:57]}  Bxd7 {[%clk 0:01:17]} 26. Bxd7 {[%clk 0:00:58]}  Nb8 {[%clk 0:01:02]} 27. Bg4 {[%clk 0:00:58]}  Qb5 {[%clk 0:00:56]} 28. Qxb5 {[%clk 0:00:44]}  axb5 {[%clk 0:00:56]} 29. Bc5 {[%clk 0:00:45]}  Rd8 {[%clk 0:00:52]} 30. Be2 {[%clk 0:00:37]}  Rd2 {[%clk 0:00:44]} 31. Bxb5 {[%clk 0:00:35]}  Rd5 {[%clk 0:00:39]} 32. Bxb4 {[%clk 0:00:26]}  Rxb5 {[%clk 0:00:39]} 33. Bd6 {[%clk 0:00:27]}  Nd7 {[%clk 0:00:37]} 34. c4 {[%clk 0:00:28]}  Rb6 {[%clk 0:00:24]} 35. Ba3 {[%clk 0:00:23]}  h6 {[%clk 0:00:21]} 36. h4 {[%clk 0:00:23]}  hxg5 {[%clk 0:00:17]} 37. hxg5 {[%clk 0:00:24]}  f6 {[%clk 0:00:17]} 38. g6 {[%clk 0:00:21]}  f5 {[%clk 0:00:17]} 39. b4 {[%clk 0:00:18]}  Rxg6 {[%clk 0:00:15]} 40. b5 {[%clk 0:00:18]}  Kf7 {[%clk 0:00:13]} 41. c5 {[%clk 0:00:17]}  Ke6 {[%clk 0:00:13]} 42. c6 {[%clk 0:00:17]}  Nb6 {[%clk 0:00:13]} 43. Bc5 {[%clk 0:00:18]}  Nc8 {[%clk 0:00:11]} 44. b6 {[%clk 0:00:18]}  Nxb6 {[%clk 0:00:09]} 45. Bxb6 {[%clk 0:00:19]}  Kd6 {[%clk 0:00:07]} 46. c7 {[%clk 0:00:19]}  Kd7 {[%clk 0:00:07]} 47. Bd4 {[%clk 0:00:15]}  Rg4 {[%clk 0:00:05]} 48. Be5 {[%clk 0:00:14]}  g6 {[%clk 0:00:05]} 49. Kc2 {[%clk 0:00:14]}  Rg3 {[%clk 0:00:06]} 50. Kd2 {[%clk 0:00:15]}  Rb3 {[%clk 0:00:05]} 51. Ke2 {[%clk 0:00:15]}  Rb5 {[%clk 0:00:05]} 52. Bf6 {[%clk 0:00:09]}  Kxc7 {[%clk 0:00:04]} 53. Kf3 {[%clk 0:00:10]}  Kd7 {[%clk 0:00:05]} 54. Kg3 {[%clk 0:00:10]}  Ke6 {[%clk 0:00:05]} 55. Bd4 {[%clk 0:00:10]}  Kf7 {[%clk 0:00:06]} 56. Kh4 {[%clk 0:00:11]}  Rd5 {[%clk 0:00:07]} 57. Bc3 {[%clk 0:00:11]}  Rd3 {[%clk 0:00:07]} 58. Be5 {[%clk 0:00:11]}  Rf3 {[%clk 0:00:08]} 59. Bd6 {[%clk 0:00:11]}  Re3 {[%clk 0:00:08]} 60. Bc7 {[%clk 0:00:12]}  Re2 {[%clk 0:00:08]} 61. Bb8 {[%clk 0:00:12]}  Rg2 {[%clk 0:00:08]} 62. Bc7 {[%clk 0:00:12]}  Rg4+ {[%clk 0:00:09]} 63. Kh3 {[%clk 0:00:12]}  Ke6 {[%clk 0:00:10]} 64. Bb8 {[%clk 0:00:13]}  Kd5 {[%clk 0:00:10]} 65. Bc7 {[%clk 0:00:11]}  Ke4 {[%clk 0:00:11]} 66. Bd6 {[%clk 0:00:12]}  Rxf4 {[%clk 0:00:12]} 0-1


[Site "https://www.chess.com"]

[Event "Titled Tuesday Blitz December 20 Early 2022"]
[White "InitiatingASC"]
[Black "Herrera Figueroa, Amado Ama"]
[BlackFideId "5137470"]
[WhiteElo "2412"]
[BlackElo "1496"]
[Result "1-0"]
[Round "03"]
[TimeControl "180+2"]
[Date "2022.12.20"]
[WhiteClock "0:00:06"]
[BlackClock "0:00:01"]

1. Nf3 {[%clk 0:02:58]}  Nf6 {[%clk 0:02:59]} 2. g3 {[%clk 0:02:59]}  b6 {[%clk 0:02:58]} 3. Bg2 {[%clk 0:02:59]}  Bb7 {[%clk 0:02:59]} 4. O-O {[%clk 0:02:58]}  c5 {[%clk 0:02:59]} 5. c4 {[%clk 0:02:55]}  e6 {[%clk 0:02:59]} 6. b3 {[%clk 0:02:55]}  Be7 {[%clk 0:02:59]} 7. Bb2 {[%clk 0:02:55]}  O-O {[%clk 0:03:00]} 8. d4 {[%clk 0:02:55]}  cxd4 {[%clk 0:03:01]} 9. Nxd4 {[%clk 0:02:54]}  Bxg2 {[%clk 0:03:02]} 10. Kxg2 {[%clk 0:02:55]}  Qc7 {[%clk 0:03:02]} 11. Nd2 {[%clk 0:02:51]}  Qb7+ {[%clk 0:03:03]} 12. f3 {[%clk 0:02:50]}  a6 {[%clk 0:03:02]} 13. e4 {[%clk 0:02:49]}  d6 {[%clk 0:03:02]} 14. Qe2 {[%clk 0:02:45]}  Nc6 {[%clk 0:02:59]} 15. Rfd1 {[%clk 0:02:44]}  Nxd4 {[%clk 0:02:59]} 16. Bxd4 {[%clk 0:02:44]}  b5 {[%clk 0:02:58]} 17. Rac1 {[%clk 0:02:41]}  Rac8 {[%clk 0:02:56]} 18. Nf1 {[%clk 0:02:31]}  bxc4 {[%clk 0:02:54]} 19. Rxc4 {[%clk 0:02:30]}  Rxc4 {[%clk 0:02:54]} 20. Qxc4 {[%clk 0:02:30]}  Rc8 {[%clk 0:02:55]} 21. Qe2 {[%clk 0:02:29]}  Nd7 {[%clk 0:01:55]} 22. Qb2 {[%clk 0:02:26]}  Bf8 {[%clk 0:01:52]} 23. Rc1 {[%clk 0:02:19]}  d5 {[%clk 0:01:46]} 24. exd5 {[%clk 0:02:04]}  Rxc1 {[%clk 0:01:44]} 25. Qxc1 {[%clk 0:02:01]}  Qxd5 {[%clk 0:01:44]} 26. Bf2 {[%clk 0:02:01]}  Ne5 {[%clk 0:01:42]} 27. Qc3 {[%clk 0:01:44]}  h6 {[%clk 0:01:13]} 28. Nd2 {[%clk 0:01:27]}  a5 {[%clk 0:01:00]} 29. Qd4 {[%clk 0:01:27]}  Nc6 {[%clk 0:00:52]} 30. Qxd5 {[%clk 0:01:20]}  exd5 {[%clk 0:00:53]} 31. Bb6 {[%clk 0:01:11]}  Bb4 {[%clk 0:00:49]} 32. Nb1 {[%clk 0:01:05]}  Kf8 {[%clk 0:00:46]} 33. Kf2 {[%clk 0:00:58]}  Ke7 {[%clk 0:00:45]} 34. Ke2 {[%clk 0:00:55]}  Kd6 {[%clk 0:00:45]} 35. a3 {[%clk 0:00:55]}  Bc5 {[%clk 0:00:45]} 36. Bxc5+ {[%clk 0:00:48]}  Kxc5 {[%clk 0:00:46]} 37. Kd3 {[%clk 0:00:41]}  Ne5+ {[%clk 0:00:44]} 38. Ke3 {[%clk 0:00:41]}  f5 {[%clk 0:00:40]} 39. Kf4 {[%clk 0:00:25]}  Kd4 {[%clk 0:00:40]} 40. Kxf5 {[%clk 0:00:20]}  Nxf3 {[%clk 0:00:39]} 41. h4 {[%clk 0:00:19]}  Kd3 {[%clk 0:00:32]} 42. b4 {[%clk 0:00:17]}  Kc2 {[%clk 0:00:20]} 43. bxa5 {[%clk 0:00:15]}  Kxb1 {[%clk 0:00:09]} 44. a6 {[%clk 0:00:14]}  Nd4+ {[%clk 0:00:10]} 45. Ke5 {[%clk 0:00:15]}  Nb5 {[%clk 0:00:06]} 46. Kxd5 {[%clk 0:00:14]}  Kc2 {[%clk 0:00:05]} 47. Kc6 {[%clk 0:00:13]}  Na7+ {[%clk 0:00:04]} 48. Kb6 {[%clk 0:00:11]}  Nc8+ {[%clk 0:00:03]} 49. Kb7 {[%clk 0:00:11]}  Nd6+ {[%clk 0:00:03]} 50. Kc6 {[%clk 0:00:11]}  Nc8 {[%clk 0:00:02]} 51. a4 {[%clk 0:00:09]}  Kb3 {[%clk 0:00:01]} 52. Kc7 {[%clk 0:00:09]}  Na7 {[%clk 0:00:01]} 53. Kb8 {[%clk 0:00:07]}  Nc6+ {[%clk 0:00:01]} 54. Kb7 {[%clk 0:00:08]}  Na5+ {[%clk 0:00:01]} 55. Kc7 {[%clk 0:00:06]} 1-0


[Site "https://www.chess.com"]

[Event "Titled Tuesday Blitz December 20 Early 2022"]
[White "Ivan11Martic"]
[Black "RianKapriaga"]
[WhiteElo "2528"]
[BlackElo "2327"]
[Result "1-0"]
[Round "03"]
[TimeControl "180+2"]
[Date "2022.12.20"]
[WhiteClock "0:00:26"]
[BlackClock "0:00:01"]

1. Nf3 {[%clk 0:03:00]}  d5 {[%clk 0:02:54]} 2. g3 {[%clk 0:03:01]}  Nf6 {[%clk 0:02:52]} 3. Bg2 {[%clk 0:03:02]}  Bf5 {[%clk 0:02:52]} 4. O-O {[%clk 0:03:02]}  e6 {[%clk 0:02:52]} 5. c4 {[%clk 0:03:01]}  Be7 {[%clk 0:02:48]} 6. Qb3 {[%clk 0:02:51]}  Na6 {[%clk 0:02:46]} 7. Qxb7 {[%clk 0:02:48]}  Nb4 {[%clk 0:02:31]} 8. Na3 {[%clk 0:02:39]}  O-O {[%clk 0:02:24]} 9. d3 {[%clk 0:02:25]}  Bc5 {[%clk 0:02:15]} 10. Qb5 {[%clk 0:02:09]}  Qe7 {[%clk 0:02:00]} 11. d4 {[%clk 0:02:09]}  Bd6 {[%clk 0:01:25]} 12. c5 {[%clk 0:02:08]}  Rfb8 {[%clk 0:01:24]} 13. cxd6 {[%clk 0:02:07]}  cxd6 {[%clk 0:01:22]} 14. Qa4 {[%clk 0:02:05]}  e5 {[%clk 0:01:12]} 15. Bd2 {[%clk 0:02:02]}  a5 {[%clk 0:01:07]} 16. dxe5 {[%clk 0:01:57]}  dxe5 {[%clk 0:01:07]} 17. Rfc1 {[%clk 0:01:43]}  h6 {[%clk 0:01:00]} 18. Qd1 {[%clk 0:01:43]}  Ne4 {[%clk 0:00:39]} 19. Be1 {[%clk 0:01:35]}  d4 {[%clk 0:00:28]} 20. Nc4 {[%clk 0:01:33]}  f6 {[%clk 0:00:26]} 21. Nh4 {[%clk 0:01:16]}  Bh7 {[%clk 0:00:26]} 22. Bh3 {[%clk 0:01:13]}  Ng5 {[%clk 0:00:20]} 23. Bg2 {[%clk 0:01:06]}  Ra7 {[%clk 0:00:19]} 24. Nxa5 {[%clk 0:00:56]}  Rxa5 {[%clk 0:00:17]} 25. a3 {[%clk 0:00:57]}  Rab5 {[%clk 0:00:15]} 26. Bxb4 {[%clk 0:00:56]}  Qf7 {[%clk 0:00:14]} 27. Nf3 {[%clk 0:00:46]}  Kh8 {[%clk 0:00:13]} 28. Nxg5 {[%clk 0:00:44]}  hxg5 {[%clk 0:00:13]} 29. Rc6 {[%clk 0:00:43]}  R5b6 {[%clk 0:00:12]} 30. Rac1 {[%clk 0:00:42]}  Rxc6 {[%clk 0:00:12]} 31. Rxc6 {[%clk 0:00:43]}  Bf5 {[%clk 0:00:11]} 32. Qc1 {[%clk 0:00:43]}  Rd8 {[%clk 0:00:10]} 33. Rc7 {[%clk 0:00:42]}  Qg6 {[%clk 0:00:10]} 34. Qc5 {[%clk 0:00:36]}  Qh5 {[%clk 0:00:09]} 35. Bf3 {[%clk 0:00:32]}  Qg6 {[%clk 0:00:07]} 36. Qe7 {[%clk 0:00:32]}  Rg8 {[%clk 0:00:07]} 37. Qf7 {[%clk 0:00:31]}  Qh7 {[%clk 0:00:06]} 38. Bd5 {[%clk 0:00:28]}  e4 {[%clk 0:00:04]} 39. Qxg8+ {[%clk 0:00:26]}  Qxg8 {[%clk 0:00:04]} 40. Bxg8 {[%clk 0:00:27]}  Kxg8 {[%clk 0:00:04]} 41. Bc5 {[%clk 0:00:26]}  d3 {[%clk 0:00:04]} 42. exd3 {[%clk 0:00:27]}  exd3 {[%clk 0:00:03]} 43. Be3 {[%clk 0:00:27]}  Kf8 {[%clk 0:00:03]} 44. Bd2 {[%clk 0:00:26]}  Be4 {[%clk 0:00:03]} 45. a4 {[%clk 0:00:25]}  Kg8 {[%clk 0:00:01]} 46. a5 {[%clk 0:00:25]}  Kh7 {[%clk 0:00:01]} 47. a6 {[%clk 0:00:26]}  Kg6 {[%clk 0:00:01]} 48. a7 {[%clk 0:00:26]} 1-0


[Site "https://www.chess.com"]

[Event "Titled Tuesday Blitz December 20 Early 2022"]
[White "Jannat Makan, Ali Reza"]
[Black "ChessTankMan"]
[WhiteFideId "22583556"]
[WhiteElo "1621"]
[BlackElo "2514"]
[Result "0-1"]
[Round "03"]
[TimeControl "180+2"]
[Date "2022.12.20"]
[WhiteClock "0:01:26"]
[BlackClock "0:01:58"]

1. e4 {[%clk 0:02:58]}  c5 {[%clk 0:02:59]} 2. Nf3 {[%clk 0:02:57]}  e6 {[%clk 0:03:00]} 3. d4 {[%clk 0:02:57]}  cxd4 {[%clk 0:03:00]} 4. Nxd4 {[%clk 0:02:58]}  a6 {[%clk 0:03:01]} 5. c4 {[%clk 0:02:58]}  Nf6 {[%clk 0:03:00]} 6. Nc3 {[%clk 0:02:59]}  Qc7 {[%clk 0:03:01]} 7. a3 {[%clk 0:02:57]}  b6 {[%clk 0:03:00]} 8. Be3 {[%clk 0:02:56]}  Bb7 {[%clk 0:03:00]} 9. f3 {[%clk 0:02:56]}  d6 {[%clk 0:02:58]} 10. Be2 {[%clk 0:02:56]}  Nbd7 {[%clk 0:02:58]} 11. O-O {[%clk 0:02:55]}  Be7 {[%clk 0:02:59]} 12. Rc1 {[%clk 0:02:54]}  O-O {[%clk 0:02:59]} 13. Kh1 {[%clk 0:02:52]}  Rac8 {[%clk 0:02:58]} 14. b4 {[%clk 0:02:52]}  Rfe8 {[%clk 0:02:59]} 15. Nb3 {[%clk 0:02:48]}  Qb8 {[%clk 0:02:56]} 16. Na4 {[%clk 0:02:41]}  d5 {[%clk 0:02:47]} 17. cxd5 {[%clk 0:02:24]}  exd5 {[%clk 0:02:42]} 18. Bxb6 {[%clk 0:02:04]}  Nxb6 {[%clk 0:02:39]} 19. Nxb6 {[%clk 0:02:04]}  Rxc1 {[%clk 0:02:39]} 20. Qxc1 {[%clk 0:01:55]}  dxe4 {[%clk 0:02:39]} 21. fxe4 {[%clk 0:01:47]}  Bxe4 {[%clk 0:02:31]} 22. Nc4 {[%clk 0:01:36]}  Bf8 {[%clk 0:02:18]} 23. Bf3 {[%clk 0:01:32]}  Bxf3 {[%clk 0:02:03]} 24. Rxf3 {[%clk 0:01:33]}  Ng4 {[%clk 0:01:59]} 25. Qg1 {[%clk 0:01:26]}  Re1 {[%clk 0:01:58]} 0-1


[Site "https://www.chess.com"]

[Event "Titled Tuesday Blitz December 20 Early 2022"]
[White "Jenkins, Drake"]
[Black "Tologon tegin, Semetei"]
[WhiteFideId "2022397"]
[BlackFideId "13800574"]
[WhiteElo "2130"]
[BlackElo "2372"]
[Result "0-1"]
[Round "03"]
[TimeControl "180+2"]
[Date "2022.12.20"]
[WhiteClock "0:00:02"]
[BlackClock "0:01:37"]

1. Nf3 {[%clk 0:03:00]}  Nf6 {[%clk 0:02:56]} 2. c4 {[%clk 0:02:59]}  e6 {[%clk 0:02:57]} 3. g3 {[%clk 0:02:59]}  b6 {[%clk 0:02:56]} 4. Bg2 {[%clk 0:03:00]}  Bb7 {[%clk 0:02:57]} 5. O-O {[%clk 0:03:00]}  c5 {[%clk 0:02:56]} 6. Nc3 {[%clk 0:02:59]}  Nc6 {[%clk 0:02:53]} 7. d4 {[%clk 0:02:57]}  Nxd4 {[%clk 0:02:52]} 8. Nxd4 {[%clk 0:02:56]}  Bxg2 {[%clk 0:02:52]} 9. Nxe6 {[%clk 0:02:47]}  dxe6 {[%clk 0:02:51]} 10. Kxg2 {[%clk 0:02:43]}  Qc7 {[%clk 0:02:51]} 11. Bf4 {[%clk 0:02:37]}  Qc6+ {[%clk 0:02:44]} 12. Kg1 {[%clk 0:02:32]}  Be7 {[%clk 0:02:45]} 13. Qa4 {[%clk 0:02:29]}  Qxa4 {[%clk 0:02:44]} 14. Nxa4 {[%clk 0:02:29]}  O-O-O {[%clk 0:02:40]} 15. Nc3 {[%clk 0:02:10]}  a6 {[%clk 0:02:37]} 16. Rad1 {[%clk 0:01:57]}  Nh5 {[%clk 0:02:33]} 17. Bc1 {[%clk 0:01:53]}  f5 {[%clk 0:02:33]} 18. f3 {[%clk 0:01:42]}  Bf6 {[%clk 0:02:13]} 19. Na4 {[%clk 0:01:09]}  b5 {[%clk 0:02:13]} 20. cxb5 {[%clk 0:00:58]}  axb5 {[%clk 0:02:13]} 21. Nxc5 {[%clk 0:00:58]}  Bd4+ {[%clk 0:02:13]} 22. Kg2 {[%clk 0:00:48]}  Bxc5 {[%clk 0:02:13]} 23. Rxd8+ {[%clk 0:00:42]}  Rxd8 {[%clk 0:02:12]} 24. Bg5 {[%clk 0:00:42]}  Rd5 {[%clk 0:02:09]} 25. h4 {[%clk 0:00:19]}  Nf6 {[%clk 0:02:02]} 26. Rc1 {[%clk 0:00:16]}  Kb7 {[%clk 0:02:01]} 27. Rc2 {[%clk 0:00:16]}  Bb6 {[%clk 0:01:57]} 28. Bxf6 {[%clk 0:00:12]}  gxf6 {[%clk 0:01:57]} 29. e4 {[%clk 0:00:13]}  fxe4 {[%clk 0:01:57]} 30. fxe4 {[%clk 0:00:14]}  Rd4 {[%clk 0:01:56]} 31. Kf3 {[%clk 0:00:14]}  Bc7 {[%clk 0:01:55]} 32. h5 {[%clk 0:00:10]}  Rd3+ {[%clk 0:01:54]} 33. Kg4 {[%clk 0:00:05]}  Rxg3+ {[%clk 0:01:54]} 34. Kh4 {[%clk 0:00:06]}  Re3 {[%clk 0:01:54]} 35. Rg2 {[%clk 0:00:03]}  Rxe4+ {[%clk 0:01:54]} 36. Kh3 {[%clk 0:00:03]}  Re5 {[%clk 0:01:54]} 37. Kh4 {[%clk 0:00:02]}  Re4+ {[%clk 0:01:47]} 38. Kh3 {[%clk 0:00:02]}  Re1 {[%clk 0:01:37]} 0-1


[Site "https://www.chess.com"]

[Event "Titled Tuesday Blitz December 20 Early 2022"]
[White "Karjakin, Sergey"]
[Black "Jabborov, Sanjar"]
[WhiteFideId "14109603"]
[BlackFideId "14219263"]
[WhiteElo "2747"]
[BlackElo "1449"]
[Result "1-0"]
[Round "03"]
[TimeControl "180+2"]
[Date "2022.12.20"]
[WhiteClock "0:00:23"]
[BlackClock "0:00:07"]

1. d4 {[%clk 0:03:00]}  Nf6 {[%clk 0:02:51]} 2. c4 {[%clk 0:02:58]}  g6 {[%clk 0:02:45]} 3. Nc3 {[%clk 0:02:58]}  Bg7 {[%clk 0:02:45]} 4. e4 {[%clk 0:02:58]}  d6 {[%clk 0:02:45]} 5. Nf3 {[%clk 0:02:58]}  O-O {[%clk 0:02:45]} 6. Be2 {[%clk 0:02:59]}  e5 {[%clk 0:02:45]} 7. O-O {[%clk 0:02:58]}  Nc6 {[%clk 0:02:45]} 8. d5 {[%clk 0:02:59]}  Ne7 {[%clk 0:02:45]} 9. b4 {[%clk 0:02:59]}  Nh5 {[%clk 0:02:44]} 10. g3 {[%clk 0:02:57]}  f5 {[%clk 0:02:39]} 11. Ng5 {[%clk 0:02:56]}  Nf6 {[%clk 0:02:37]} 12. Bf3 {[%clk 0:02:57]}  f4 {[%clk 0:02:35]} 13. c5 {[%clk 0:02:49]}  a5 {[%clk 0:02:26]} 14. Ba3 {[%clk 0:02:47]}  h6 {[%clk 0:02:17]} 15. Ne6 {[%clk 0:02:47]}  Bxe6 {[%clk 0:02:17]} 16. dxe6 {[%clk 0:02:48]}  dxc5 {[%clk 0:02:13]} 17. bxc5 {[%clk 0:02:24]}  c6 {[%clk 0:02:10]} 18. Rb1 {[%clk 0:02:19]}  Qc8 {[%clk 0:01:55]} 19. Qb3 {[%clk 0:02:16]}  g5 {[%clk 0:01:38]} 20. Rfd1 {[%clk 0:02:15]}  g4 {[%clk 0:01:36]} 21. Be2 {[%clk 0:02:15]}  a4 {[%clk 0:01:34]} 22. Qxb7 {[%clk 0:02:12]}  Qxe6 {[%clk 0:01:33]} 23. Rd6 {[%clk 0:02:06]}  Qf7 {[%clk 0:01:29]} 24. Qb4 {[%clk 0:01:43]}  fxg3 {[%clk 0:01:12]} 25. hxg3 {[%clk 0:01:38]}  Ne8 {[%clk 0:01:08]} 26. Rf1 {[%clk 0:01:26]}  Kh8 {[%clk 0:00:45]} 27. Bc4 {[%clk 0:01:22]}  Qh5 {[%clk 0:00:39]} 28. Rd7 {[%clk 0:01:19]}  Ng6 {[%clk 0:00:35]} 29. Ne2 {[%clk 0:01:11]}  Nf6 {[%clk 0:00:34]} 30. Rxg7 {[%clk 0:01:04]}  Kxg7 {[%clk 0:00:34]} 31. Be6 {[%clk 0:01:03]}  Rae8 {[%clk 0:00:31]} 32. Qc4 {[%clk 0:01:00]}  Nxe4 {[%clk 0:00:25]} 33. Qxe4 {[%clk 0:00:45]}  Rxe6 {[%clk 0:00:25]} 34. Bb2 {[%clk 0:00:42]}  Ref6 {[%clk 0:00:24]} 35. Qxa4 {[%clk 0:00:36]}  Qh3 {[%clk 0:00:17]} 36. Qe4 {[%clk 0:00:28]}  Re8 {[%clk 0:00:15]} 37. Rd1 {[%clk 0:00:25]}  Re7 {[%clk 0:00:14]} 38. Rd6 {[%clk 0:00:25]}  Rxd6 {[%clk 0:00:08]} 39. cxd6 {[%clk 0:00:25]}  Rf7 {[%clk 0:00:08]} 40. Bxe5+ {[%clk 0:00:24]}  Kh7 {[%clk 0:00:08]} 41. Nf4 {[%clk 0:00:23]}  Rxf4 {[%clk 0:00:07]} 42. Bxf4 {[%clk 0:00:23]} 1-0


[Site "https://www.chess.com"]

[Event "Titled Tuesday Blitz December 20 Early 2022"]
[White "KarstenHansch"]
[Black "Borges Matos, Juan"]
[BlackFideId "3500160"]
[WhiteElo "2520"]
[BlackElo "2409"]
[Result "1-0"]
[Round "03"]
[TimeControl "180+2"]
[Date "2022.12.20"]
[WhiteClock "0:01:31"]
[BlackClock "0:01:01"]

1. e4 {[%clk 0:03:00]}  e6 {[%clk 0:03:00]} 2. d4 {[%clk 0:03:00]}  d5 {[%clk 0:03:00]} 3. Nc3 {[%clk 0:03:01]}  Nf6 {[%clk 0:03:00]} 4. e5 {[%clk 0:03:01]}  Nfd7 {[%clk 0:03:00]} 5. f4 {[%clk 0:03:01]}  c5 {[%clk 0:03:01]} 6. Nf3 {[%clk 0:03:02]}  Nc6 {[%clk 0:03:01]} 7. Be3 {[%clk 0:03:02]}  cxd4 {[%clk 0:03:02]} 8. Nxd4 {[%clk 0:03:02]}  Bc5 {[%clk 0:03:02]} 9. Qd2 {[%clk 0:02:56]}  O-O {[%clk 0:03:03]} 10. O-O-O {[%clk 0:02:55]}  a6 {[%clk 0:03:03]} 11. g4 {[%clk 0:02:48]}  Bxd4 {[%clk 0:03:00]} 12. Bxd4 {[%clk 0:02:48]}  b5 {[%clk 0:03:01]} 13. h4 {[%clk 0:02:28]}  b4 {[%clk 0:03:00]} 14. Ne2 {[%clk 0:02:27]}  a5 {[%clk 0:03:00]} 15. h5 {[%clk 0:02:27]}  Ba6 {[%clk 0:02:57]} 16. g5 {[%clk 0:02:24]}  Qc7 {[%clk 0:02:48]} 17. g6 {[%clk 0:02:11]}  Rac8 {[%clk 0:02:12]} 18. h6 {[%clk 0:01:58]}  fxg6 {[%clk 0:01:52]} 19. hxg7 {[%clk 0:01:57]}  Kxg7 {[%clk 0:01:42]} 20. f5 {[%clk 0:01:57]}  h5 {[%clk 0:01:13]} 21. f6+ {[%clk 0:01:48]}  Kf7 {[%clk 0:01:11]} 22. Qh6 {[%clk 0:01:35]}  Bxe2 {[%clk 0:01:01]} 23. Bxe2 {[%clk 0:01:31]}  Nxd4 {[%clk 0:01:01]} 24. Qg7+ {[%clk 0:01:31]} 1-0


[Site "https://www.chess.com"]

[Event "Titled Tuesday Blitz December 20 Early 2022"]
[White "Karttunen, Mika"]
[Black "Baki, Peter"]
[WhiteFideId "502081"]
[BlackFideId "718459"]
[WhiteElo "2490"]
[BlackElo "2100"]
[Result "1-0"]
[Round "03"]
[TimeControl "180+2"]
[Date "2022.12.20"]
[WhiteClock "0:00:16"]
[BlackClock "0:00:12"]

1. d4 {[%clk 0:03:00]}  Nf6 {[%clk 0:02:59]} 2. c4 {[%clk 0:03:00]}  g6 {[%clk 0:02:59]} 3. f3 {[%clk 0:02:58]}  d5 {[%clk 0:02:58]} 4. cxd5 {[%clk 0:02:58]}  Nxd5 {[%clk 0:02:59]} 5. e4 {[%clk 0:02:58]}  Nb6 {[%clk 0:02:58]} 6. Nc3 {[%clk 0:02:58]}  Bg7 {[%clk 0:02:58]} 7. Be3 {[%clk 0:02:58]}  O-O {[%clk 0:02:58]} 8. Qd2 {[%clk 0:02:59]}  Nc6 {[%clk 0:02:58]} 9. O-O-O {[%clk 0:02:42]}  f5 {[%clk 0:02:58]} 10. e5 {[%clk 0:02:36]}  Nb4 {[%clk 0:02:56]} 11. Nh3 {[%clk 0:02:20]}  Kh8 {[%clk 0:02:41]} 12. Nf4 {[%clk 0:02:13]}  a5 {[%clk 0:02:40]} 13. h4 {[%clk 0:02:08]}  Kg8 {[%clk 0:02:12]} 14. Kb1 {[%clk 0:02:04]}  c6 {[%clk 0:02:09]} 15. Be2 {[%clk 0:02:03]}  N4d5 {[%clk 0:02:08]} 16. Ncxd5 {[%clk 0:01:43]}  Nxd5 {[%clk 0:02:09]} 17. Bc4 {[%clk 0:01:43]}  b5 {[%clk 0:02:02]} 18. Bxd5+ {[%clk 0:01:43]}  cxd5 {[%clk 0:02:02]} 19. h5 {[%clk 0:01:37]}  g5 {[%clk 0:02:02]} 20. h6 {[%clk 0:01:37]}  Bh8 {[%clk 0:01:58]} 21. Nd3 {[%clk 0:01:20]}  f4 {[%clk 0:01:58]} 22. Bf2 {[%clk 0:01:20]}  Bf5 {[%clk 0:01:58]} 23. Ka1 {[%clk 0:01:20]}  b4 {[%clk 0:01:58]} 24. Nc5 {[%clk 0:01:18]}  Rc8 {[%clk 0:01:01]} 25. Rdg1 {[%clk 0:01:10]}  Rxc5 {[%clk 0:01:00]} 26. dxc5 {[%clk 0:01:10]}  Bxe5 {[%clk 0:01:01]} 27. Bd4 {[%clk 0:01:09]}  Qc7 {[%clk 0:00:58]} 28. Re1 {[%clk 0:01:08]}  Bxd4 {[%clk 0:00:56]} 29. Qxd4 {[%clk 0:01:08]}  e6 {[%clk 0:00:57]} 30. Rc1 {[%clk 0:00:55]}  a4 {[%clk 0:00:48]} 31. Rhe1 {[%clk 0:00:50]}  b3 {[%clk 0:00:43]} 32. a3 {[%clk 0:00:49]}  Qe7 {[%clk 0:00:39]} 33. c6 {[%clk 0:00:38]}  Rc8 {[%clk 0:00:35]} 34. Qxd5 {[%clk 0:00:30]}  Kf7 {[%clk 0:00:32]} 35. Qe5 {[%clk 0:00:27]}  Kg6 {[%clk 0:00:31]} 36. c7 {[%clk 0:00:26]}  Qd7 {[%clk 0:00:21]} 37. Red1 {[%clk 0:00:26]}  Qe7 {[%clk 0:00:20]} 38. Qd6 {[%clk 0:00:20]}  Qxd6 {[%clk 0:00:15]} 39. Rxd6 {[%clk 0:00:20]}  Bc2 {[%clk 0:00:16]} 40. Rxe6+ {[%clk 0:00:19]}  Kf7 {[%clk 0:00:16]} 41. Rc6 {[%clk 0:00:19]}  Ke7 {[%clk 0:00:17]} 42. Re1+ {[%clk 0:00:19]}  Kd7 {[%clk 0:00:17]} 43. Rc3 {[%clk 0:00:18]}  Kd6 {[%clk 0:00:16]} 44. Re2 {[%clk 0:00:16]}  Bg6 {[%clk 0:00:15]} 45. Rd2+ {[%clk 0:00:16]}  Ke7 {[%clk 0:00:14]} 46. Rd5 {[%clk 0:00:16]}  Kf6 {[%clk 0:00:13]} 47. Rd8 {[%clk 0:00:17]}  Bf5 {[%clk 0:00:12]} 48. Rc6+ {[%clk 0:00:16]}  Ke7 {[%clk 0:00:12]} 49. Rxc8 {[%clk 0:00:16]}  Bxc8 {[%clk 0:00:13]} 50. Rc5 {[%clk 0:00:17]}  Kf6 {[%clk 0:00:12]} 51. Kb1 {[%clk 0:00:16]} 1-0


[Site "https://www.chess.com"]